bitfinex-derivatives/quotes_BNBF0:USTF0_20250507
["timestamp","ask_amount","ask_price","bid_price","bid_amount"]
[1746579761926,0.3037287,606.46,603.59,1.04391929]
[1746579762122,0.3037287,606.45,603.59,1.04391929]
[1746579762418,0.3037287,606.44,603.59,1.04391929]
[1746579762723,0.3037287,606.43,603.59,1.04391929]
[1746579763024,0.3037287,606.42,603.59,1.04391929]
[1746579763322,1.261043,606.36,603.72,1.04391929]
[1746579763723,0.3037287,606.35,603.72,1.04391929]
[1746579763920,0.3037287,606.35,603.73,0.631]
[1746579764118,0.3037287,606.34,603.73,0.631]
[1746579764525,0.3037287,606.33,603.73,0.631]
[1746579764824,0.3037287,606.32,603.73,0.631]
[1746579765026,0.3037287,606.31,603.73,0.631]
[1746579765219,0.3037287,606.3,603.73,0.631]
[1746579765527,0.3037287,606.29,603.73,0.631]
[1746579765826,0.3037287,606.28,603.73,0.631]
[1746579766223,0.3037287,606.27,603.73,0.631]
[1746579766526,0.3037287,606.26,603.73,0.631]
[1746579766930,0.59129517,606.26,603.73,0.631]
[1746579767226,0.3037287,606.25,603.73,0.631]
[1746579770028,0.28758192,606.24,603.73,0.631]
[1746579770530,0.30369183,606.23,603.73,0.631]
[1746579772833,0.28758429,606.22,603.73,0.631]
[1746579773134,0.30369183,606.21,603.73,0.631]
[1746579774736,0.28758429,606.22,603.73,0.631]
[1746579775034,0.30366877,606.21,603.73,0.631]
[1746579777433,0.30366877,606.21,603.85,0.33120808]
[1746579778136,0.30366877,606.68,603.85,0.33120808]
[1746579778330,0.2875439,606.2,603.85,0.33120808]
[1746579778535,0.30366877,606.19,603.85,0.33120808]
[1746579778731,0.30366877,606.65,603.85,0.33120808]
[1746579778936,0.30366877,606.64,603.85,0.33120808]
[1746579779134,0.30366877,606.63,603.85,0.33120808]
[1746579779431,0.30366877,606.62,603.85,0.33120808]
[1746579779632,0.30366877,606.61,603.85,0.33120808]
[1746579779931,0.30366877,606.6,603.85,0.33120808]
[1746579780233,0.30366877,606.59,603.85,0.33120808]
[1746579780440,0.30366877,606.58,603.85,0.33120808]
[1746579780632,0.30366877,606.57,603.85,0.33120808]
[1746579780836,0.30366877,606.56,603.85,0.33120808]
[1746579781032,0.30366877,606.55,603.85,0.33120808]
[1746579781332,0.30366877,606.54,603.85,0.33120808]
[1746579781632,0.30366877,606.53,603.85,0.33120808]
[1746579781831,0.59115566,606.53,603.85,0.33120808]
[1746579782035,0.30366877,606.52,603.85,0.33120808]
[1746579782437,0.30366877,606.52,603.86,0.618]
[1746579784033,0.30366877,606.51,603.86,0.618]
[1746579784238,0.30366877,606.52,603.86,0.618]
[1746579786642,0.28748689,606.53,603.86,0.618]
[1746579786842,0.30352691,606.52,603.86,0.618]
[1746579793146,0.30352691,606.52,603.87,0.474]
[1746579800050,0.2874572,606.51,603.87,0.474]
[1746579800260,0.30352691,606.5,603.88,0.554]
[1746579800555,0.2874572,606.51,603.88,0.554]
[1746579800857,0.30353741,606.5,603.88,0.554]
[1746579801055,0.30353741,606.5,604.01,0.33112034]
[1746579802857,0.28745601,606.49,604.01,0.33112034]
[1746579803058,0.30353741,606.48,604.01,0.33112034]
[1746579805962,0.28746314,606.47,604.01,0.33112034]
[1746579806357,0.30353741,606.46,604.01,0.33112034]
[1746579807264,0.28746314,606.47,604.01,0.33112034]
[1746579807564,0.30354138,606.46,604.01,0.33112034]
[1746579808861,0.28746076,606.45,604.01,0.33112034]
[1746579809165,0.30354138,606.44,604.01,0.33112034]
[1746579814072,0.29303734,606.44,604.01,0.33112034]
[1746579814872,0.28743821,606.43,604.01,0.33112034]
[1746579815267,0.30350963,606.42,604.01,0.33112034]
[1746579816472,0.28743821,606.43,604.01,0.33112034]
[1746579816674,0.30351473,606.41,604.01,0.33112034]
[1746579816973,0.30351473,606.42,604.01,0.33112034]
[1746579818970,0.30351473,606.42,604.02,0.531]
[1746579819167,0.30351473,606.42,604.14,0.33104909]
[1746579820878,0.28743465,606.41,604.14,0.33104909]
[1746579821079,0.59094938,606.41,604.14,0.33104909]
[1746579821279,0.28743465,606.41,604.14,0.33104909]
[1746579821479,0.30351473,606.4,604.14,0.33104909]
[1746579821779,0.28743465,606.41,604.14,0.33104909]
[1746579822279,0.30351191,606.4,604.14,0.33104909]
[1746579823873,0.28744058,606.39,604.14,0.33104909]
[1746579824278,0.30351191,606.38,604.14,0.33104909]
[1746579826882,0.28744533,606.37,604.14,0.33104909]
[1746579827281,0.30351191,606.36,604.14,0.33104909]
[1746579827783,0.30351191,606.36,604.17,1.04391929]
[1746579828479,0.30351191,606.36,604.27,0.33097787]
[1746579830188,0.28743821,606.35,604.27,0.33097787]
[1746579830586,0.30351191,606.34,604.27,0.33097787]
[1746579832786,0.28744058,606.33,604.27,1.02897787]
[1746579833495,0.30351191,606.32,604.27,1.02897787]
[1746579835391,0.30351191,606.32,604.27,1.62997787]
[1746579835890,0.28743108,606.31,604.27,1.62997787]
[1746579837197,0.30351871,606.3,604.27,1.62997787]
[1746579841902,0.28743346,606.29,604.27,1.62997787]
[1746579842303,0.30351871,606.28,604.27,1.62997787]
[1746579844506,0.28743346,606.29,604.27,1.62997787]
[1746579844800,0.30362367,606.28,604.27,1.62997787]
[1746579846697,0.30362367,606.27,604.27,1.62997787]
[1746579847001,0.30362367,606.26,604.27,1.62997787]
[1746579847298,0.30362367,606.25,604.27,1.62997787]
[1746579847601,0.30362367,606.24,604.27,1.62997787]
[1746579847797,0.30362367,606.23,604.27,1.62997787]
[1746579848001,0.30362367,606.22,604.27,1.62997787]
[1746579848202,0.30362367,606.28,604.27,1.62997787]
[1746579848503,0.30362367,606.27,604.27,1.62997787]
[1746579849500,0.30362367,606.28,604.27,1.62997787]
[1746579849701,0.30362367,606.26,604.27,1.62997787]
[1746579849903,0.30362367,606.28,604.27,1.62997787]
[1746579851107,0.28745958,606.27,604.27,1.62997787]
[1746579852408,0.30362367,606.26,604.27,1.62997787]
[1746579856309,0.30362367,606.25,604.27,1.62997787]
[1746579856513,0.32990234,606.24,604.27,1.62997787]
[1746579856702,0.63352601,606.24,604.27,1.62997787]
[1746579856903,0.30362367,606.23,604.27,1.62997787]
[1746579857208,0.30362367,606.22,604.27,1.62997787]
[1746579857709,0.30362367,606.21,604.27,1.62997787]
[1746579858108,0.30362367,606.2,604.27,1.62997787]
[1746579858306,0.30362367,606.19,604.27,1.62997787]
[1746579858509,0.32990234,606.24,604.27,1.62997787]
[1746579858705,0.30371169,606.23,604.27,1.62997787]
[1746579858909,0.32990234,606.24,604.27,1.62997787]
[1746579858910,0.30371169,606.22,604.27,1.62997787]
[1746579859109,0.30371169,606.21,604.27,1.62997787]
[1746579859304,0.30371169,606.2,604.27,1.62997787]
[1746579859512,1.261043,606.11,604.27,1.62997787]
[1746579860010,0.92127334,606.1,604.27,1.62997787]
[1746579860310,0.30371169,606.09,604.27,1.62997787]
[1746579860711,0.32998944,606.08,604.27,1.62997787]
[1746579861110,0.30371169,606.07,604.27,1.62997787]
[1746579866118,0.28753914,606.06,604.27,1.62997787]
[1746579866317,0.30371169,606.05,604.27,1.62997787]
[1746579868315,0.33001122,606.04,604.27,1.62997787]
[1746579868517,0.30371169,606.03,604.27,1.62997787]
[1746579868918,0.30371169,606.02,604.27,1.62997787]
[1746579869118,0.30371169,606.01,604.27,1.62997787]
[1746579869318,0.30371169,606.0,604.27,1.62997787]
[1746579869515,0.30371169,605.99,604.27,1.62997787]
[1746579869717,0.30371169,605.98,604.27,1.62997787]
[1746579869916,0.30371169,605.97,604.27,1.62997787]
[1746579870117,0.30371169,605.96,604.27,1.62997787]
[1746579870412,0.30371169,605.95,604.27,1.62997787]
[1746579870619,0.30371169,605.94,604.27,1.62997787]
[1746579870814,0.28759023,606.03,604.27,1.62997787]
[1746579870815,0.30371169,605.93,604.27,1.62997787]
[1746579871019,0.30371169,605.92,604.27,1.62997787]
[1746579871214,0.30371169,605.91,604.27,1.62997787]
[1746579871417,0.30371169,605.9,604.27,1.62997787]
[1746579871617,0.30371169,605.89,604.27,1.62997787]
[1746579871816,0.30371169,605.88,604.27,1.62997787]
[1746579872018,0.30371169,605.87,604.27,1.62997787]
[1746579872219,0.30371169,605.86,604.27,1.62997787]
[1746579872519,0.30371169,605.85,604.27,1.62997787]
[1746579872719,0.30371169,605.84,604.27,1.62997787]
[1746579873020,0.30371169,605.83,604.27,1.62997787]
[1746579873220,0.30371169,605.83,604.27,0.93197787]
[1746579873420,0.30371169,605.82,604.27,0.93197787]
[1746579873816,0.30371169,605.81,604.27,0.93197787]
[1746579874022,0.30371169,605.8,604.27,0.93197787]
[1746579874222,0.30371169,605.79,604.27,0.93197787]
[1746579874423,0.30371169,605.78,604.27,0.33097787]
[1746579874623,0.30371169,605.88,604.27,0.33097787]
[1746579874923,0.28757479,605.77,604.27,0.33097787]
[1746579875221,0.30371169,605.76,604.27,0.33097787]
[1746579875423,0.30371169,606.03,604.27,0.33097787]
[1746579875722,0.30371169,606.02,604.27,0.33097787]
[1746579876117,0.30371169,606.01,604.27,0.33097787]
[1746579876322,0.33001122,606.04,604.27,0.33097787]
[1746579876517,0.30371657,606.0,604.27,0.89797787]
[1746579876723,0.30371758,605.99,604.27,0.89797787]
[1746579876922,0.30371758,605.98,604.27,0.89797787]
[1746579877118,0.30371758,605.97,604.27,0.89797787]
[1746579877319,0.30371758,605.96,604.27,0.89797787]
[1746579877522,0.30371758,605.95,604.27,0.89797787]
[1746579877722,0.30371758,605.94,604.27,0.89797787]
[1746579877925,0.30371758,605.93,604.27,0.89797787]
[1746579878125,0.30371758,605.92,604.27,0.89797787]
[1746579878324,0.30371758,606.0,604.27,0.89797787]
[1746579880227,0.30371758,606.0,604.27,1.54097787]
[1746579880927,0.28758548,605.99,604.27,1.54097787]
[1746579881120,0.30371758,605.98,604.27,1.54097787]
[1746579883824,0.30371758,606.03,604.27,1.54097787]
[1746579884022,0.33002211,606.02,604.27,1.54097787]
[1746579884225,0.28758905,605.97,604.27,1.54097787]
[1746579884427,0.30371758,605.96,604.27,1.54097787]
[1746579886928,0.28759736,605.95,604.27,1.54097787]
[1746579887429,0.30371758,605.94,604.27,1.54097787]
[1746579890124,0.28757003,605.93,604.27,1.54097787]
[1746579890430,0.30371758,605.92,604.27,1.54097787]
[1746579891129,0.30371758,605.92,604.27,1.21]
[1746579893026,0.5913197,605.91,604.27,1.21]
[1746579893331,0.30371758,605.9,604.27,1.21]
[1746579895833,0.30371758,606.61,604.27,1.21]
[1746579896033,0.28760449,605.89,604.27,1.21]
[1746579896230,0.30371758,606.6,604.27,1.21]
[1746579896428,0.30371758,606.59,604.27,1.21]
[1746579896626,0.30371758,606.58,604.27,1.21]
[1746579896934,0.30371758,606.57,604.27,1.21]
[1746579897235,0.30371758,606.56,604.27,1.21]
[1746579897536,0.30371758,606.55,604.27,1.21]
[1746579897830,0.30371758,606.54,604.27,1.21]
[1746579898535,0.30371758,606.53,604.27,1.21]
[1746579898735,0.30371758,606.52,604.27,1.21]
[1746579898936,1.56476058,606.51,604.27,1.21]
[1746579899129,0.30371758,606.5,604.27,1.21]
[1746579899334,0.30371758,606.49,604.27,1.21]
[1746579899629,0.30371758,606.48,604.27,1.21]
[1746579900439,0.30371758,606.47,604.27,1.21]
[1746579900636,0.30371758,606.46,604.27,1.21]
[1746579900836,0.30371758,606.45,604.27,1.21]
[1746579901137,0.28750114,606.57,604.27,1.21]
[1746579901138,0.30371758,606.44,604.27,1.21]
[1746579901533,0.30371758,606.43,604.27,1.21]
[1746579901936,0.59122584,606.42,604.27,1.21]
[1746579902235,0.30371758,606.41,604.27,1.21]
[1746579902438,0.30371758,606.4,604.27,1.21]
[1746579903039,0.30371758,606.39,604.27,1.21]
[1746579903339,0.30371758,606.38,604.27,1.21]
[1746579903541,0.30371758,606.37,604.27,1.21]
[1746579903835,0.30371758,606.36,604.27,1.21]
[1746579904039,0.30371758,606.35,604.27,1.21]
[1746579904341,0.30371758,606.34,604.27,1.21]
[1746579904640,0.30371758,606.33,604.27,1.21]
[1746579904840,0.30371758,606.32,604.27,1.21]
[1746579905139,0.30371758,606.31,604.27,1.21]
[1746579905436,0.30371758,606.3,604.27,1.21]
[1746579906541,0.30371758,606.29,604.27,1.21]
[1746579906742,0.30371758,606.28,604.27,1.21]
[1746579906938,0.30371758,606.27,604.27,1.21]
[1746579907142,0.30371758,606.26,604.27,1.21]
[1746579907944,0.59124841,606.25,604.27,1.21]
[1746579908546,0.30371758,606.24,604.27,1.21]
[1746579908845,0.30371758,606.23,604.27,1.21]
[1746579909044,0.30371758,606.22,604.27,1.21]
[1746579909547,0.30371758,606.21,604.27,1.21]
[1746579909742,0.30371758,606.2,604.27,1.21]
[1746579910046,0.30371758,606.19,604.27,1.21]
[1746579910346,0.30371758,606.18,604.27,1.21]
[1746579910547,0.30371758,606.17,604.27,1.21]
[1746579910948,0.5912294,606.16,604.27,1.21]
[1746579911448,0.30371758,606.15,604.27,1.21]
[1746579913053,0.28751182,606.16,604.27,1.21]
[1746579913253,0.30367593,606.15,604.27,1.21]
[1746579915950,0.30367593,606.15,604.29,0.33096691]
[1746579917155,0.28760093,606.14,604.29,0.33096691]
[1746579917355,0.30367593,606.13,604.29,0.33096691]
[1746579919258,0.30367593,606.13,604.29,0.79196691]
[1746579920059,0.28752251,606.12,604.29,0.79196691]
[1746579920259,0.28752251,606.12,604.29,1.33596691]
[1746579920658,0.30367593,606.11,604.29,1.33596691]
[1746579922958,0.28749164,606.1,604.29,1.33596691]
[1746579923358,0.30367593,606.09,604.29,1.33596691]
[1746579928069,0.28749164,606.1,604.29,1.33596691]
[1746579928368,0.30364261,606.09,604.29,1.33596691]
[1746579929070,0.28752489,606.08,604.29,1.33596691]
[1746579929369,0.30364261,606.07,604.29,1.33596691]
[1746579931970,0.28753202,606.06,604.29,1.33596691]
[1746579932271,0.30364261,606.05,604.29,1.33596691]
[1746579934269,0.28753202,606.06,604.29,1.33596691]
[1746579934570,0.30365181,606.05,604.29,1.33596691]
[1746579934973,0.28752251,606.04,604.29,1.33596691]
[1746579935273,0.30365181,606.03,604.29,1.33596691]
[1746579938676,1.56469481,607.02,604.29,1.33596691]
[1746579938877,0.32954358,606.9,604.29,1.33596691]
[1746579939078,0.28738717,606.02,604.29,1.33596691]
[1746579939377,0.30365181,606.89,604.29,1.33596691]
[1746579939578,0.59105322,606.01,604.29,1.33596691]
[1746579939776,0.30365181,606.0,604.29,1.33596691]
[1746579940079,0.28750707,606.0,604.29,1.33596691]
[1746579940380,0.30365181,605.99,604.29,1.33596691]
[1746579941080,0.30365181,606.78,604.29,1.33596691]
[1746579941580,0.30365181,606.77,604.29,1.33596691]
[1746579941879,0.30365181,606.76,604.29,1.33596691]
[1746579942081,0.30365181,606.75,604.29,1.33596691]
[1746579942681,0.30365181,606.74,604.29,1.33596691]
[1746579942875,0.30365181,606.73,604.29,1.33596691]
[1746579943279,0.30365181,606.72,604.29,1.33596691]
[1746579943477,0.28741447,606.76,604.29,1.33596691]
[1746579943680,1.261043,606.77,604.29,1.33596691]
[1746579943977,0.28741684,606.75,604.29,1.33596691]
[1746579944582,0.32963591,606.73,604.29,1.33596691]
[1746579945678,0.30360714,606.72,604.29,1.33596691]
[1746579945878,0.30360714,606.71,604.29,1.33596691]
[1746579946177,0.30360714,606.7,604.29,1.33596691]
[1746579946483,0.30360714,606.69,604.29,1.33596691]
[1746579946876,0.30360714,606.68,604.29,1.33596691]
[1746579947081,0.30360714,606.67,604.29,1.33596691]
[1746579947281,0.28743583,606.68,604.29,1.33596691]
[1746579947482,0.32967395,606.66,604.29,1.33596691]
[1746579947777,0.30362886,606.65,604.29,1.33596691]
[1746579947982,0.32969025,606.63,604.29,1.33596691]
[1746579948180,0.30362886,606.62,604.29,1.33596691]
[1746579948481,0.32970656,606.6,604.29,1.33596691]
[1746579949282,0.30362886,606.59,604.29,1.33596691]
[1746579949480,0.30362886,606.58,604.29,1.33596691]
[1746579949782,0.30362886,606.57,604.29,1.33596691]
[1746579949984,0.59108013,606.57,604.29,1.33596691]
[1746579950184,0.30362886,606.56,604.29,1.33596691]
[1746579950582,0.30362886,606.55,604.29,1.33596691]
[1746579951079,0.30362886,606.54,604.29,1.33596691]
[1746579951280,0.30362886,606.53,604.29,1.33596691]
[1746579951481,0.32975548,606.51,604.29,1.33596691]
[1746579951983,0.30362886,606.5,604.29,1.33596691]
[1746579952384,0.30362886,606.49,604.29,1.33596691]
[1746579952583,0.30362886,606.48,604.29,1.33596691]
[1746579952784,0.32978267,606.46,604.29,1.33596691]
[1746579953179,0.30362886,606.45,604.29,1.33596691]
[1746579953382,0.32979898,606.43,604.29,1.33596691]
[1746579953881,0.30362886,606.42,604.29,1.33596691]
[1746579954090,0.3298153,606.4,604.29,1.33596691]
[1746579954586,0.30362886,606.39,604.29,1.33596691]
[1746579954986,0.30362886,606.38,604.29,1.33596691]
[1746579955281,0.30362886,606.37,604.29,1.33596691]
[1746579955687,0.30362886,606.36,604.29,1.33596691]
[1746579955882,0.30362886,606.35,604.29,1.33596691]
[1746579956488,0.32985338,606.33,604.29,1.33596691]
[1746579957086,0.30377738,606.32,604.29,1.33596691]
[1746579957485,0.30377738,606.31,604.29,1.33596691]
[1746579957688,0.32987514,606.29,604.29,1.33596691]
[1746579958083,0.30377738,606.28,604.29,1.33596691]
[1746579958282,0.30377738,606.27,604.29,1.33596691]
[1746579958688,0.30377738,606.26,604.29,1.33596691]
[1746579958888,0.32990234,606.24,604.29,1.33596691]
[1746579959283,0.30377738,606.23,604.29,1.33596691]
[1746579959583,0.63369061,606.22,604.29,1.33596691]
[1746579959888,0.63369605,606.21,604.29,1.33596691]
[1746579960283,0.63370149,606.2,604.29,1.33596691]
[1746579960486,0.63370694,606.19,604.29,1.33596691]
[1746579960790,0.63371238,606.18,604.29,1.33596691]
[1746579960991,0.32994044,606.17,604.29,1.33596691]
[1746579961290,0.30377738,606.16,604.29,1.33596691]
[1746579961491,0.32995133,606.15,604.29,1.33596691]
[1746579961993,0.28756766,606.14,604.29,1.33596691]
[1746579962388,0.59134504,606.14,604.29,1.33596691]
[1746579962586,0.30377738,606.13,604.29,1.33596691]
[1746579962891,0.32996766,606.12,604.29,1.33596691]
[1746579963387,0.30377738,606.11,604.29,1.33596691]
[1746579963593,0.32996766,606.12,604.29,1.33596691]
[1746579963794,0.32997855,606.1,604.29,1.33596691]
[1746579963993,0.30374452,606.09,604.29,1.33596691]
[1746579964292,0.32998944,606.08,604.29,1.33596691]
[1746579964595,0.30374452,606.07,604.29,1.33596691]
[1746579969298,0.32998944,606.08,604.29,1.33596691]
[1746579969599,0.30373167,606.07,604.29,1.33596691]
[1746579970194,0.30373167,606.06,604.29,1.33596691]
[1746579970399,0.30373167,606.05,604.29,1.33596691]
[1746579970796,0.30373167,606.07,604.29,1.33596691]
[1746579972298,0.28755815,606.06,604.29,1.33596691]
[1746579972599,0.30373167,606.05,604.29,1.33596691]
[1746579974003,0.28756053,606.04,604.29,1.33596691]
[1746579974299,0.30373167,606.03,604.29,1.33596691]
[1746579979202,0.28756053,606.04,604.29,1.33596691]
[1746579979404,0.30374818,606.03,604.29,1.33596691]
[1746579983013,0.2875629,606.02,604.29,1.33596691]
[1746579983312,0.30374818,606.01,604.29,1.33596691]
[1746579986014,0.28756528,606.0,604.29,1.33596691]
[1746579987310,0.30374818,605.99,604.29,1.33596691]
[1746579988510,0.28756528,606.0,604.29,1.33596691]
[1746579988715,0.30375736,605.99,604.29,1.33596691]
[1746579994614,0.32998944,606.08,604.29,1.33596691]
[1746579994915,0.28757241,605.98,604.29,1.33596691]
[1746579995314,0.30374939,605.97,604.29,1.33596691]
[1746579995520,0.30374939,606.07,604.29,1.33596691]
[1746579995815,0.30374939,606.06,604.29,1.33596691]
[1746579996220,0.30374939,606.05,604.29,1.33596691]
[1746579996422,0.30374939,606.04,604.29,1.33596691]
[1746579996820,0.30374939,606.03,604.29,1.33596691]
[1746579997122,0.30374939,606.02,604.29,1.33596691]
[1746579997516,0.30374939,606.01,604.29,1.33596691]
[1746579997823,0.30374939,606.0,604.29,1.33596691]
[1746579998323,0.30374939,605.99,604.29,1.33596691]
[1746579998517,0.2875629,606.05,604.29,1.33596691]
[1746579998518,0.30374939,605.98,604.29,1.33596691]
[1746579998920,0.30374939,605.97,604.29,1.33596691]
[1746579999225,0.30374939,605.96,604.29,1.33596691]
[1746579999520,0.30374939,605.95,604.29,1.33596691]
[1746579999825,0.30374939,605.94,604.29,1.33596691]
[1746580000126,0.30374939,605.93,604.29,1.33596691]
[1746580000425,0.30374939,605.92,604.29,1.33596691]
[1746580000924,1.261043,605.99,604.29,1.33596691]
[1746580000925,0.30374939,605.91,604.29,1.33596691]
[1746580001225,0.30374939,605.9,604.29,1.33596691]
[1746580001528,0.30374939,605.89,604.29,1.33596691]
[1746580001921,0.30374939,605.88,604.29,1.33596691]
[1746580002325,0.30374939,605.87,604.29,1.33596691]
[1746580002622,0.30374939,605.86,604.29,1.33596691]
[1746580003125,0.30374939,605.9,604.29,1.33596691]
[1746580003427,0.30374939,605.89,604.29,1.33596691]
[1746580003729,0.30374939,605.88,604.29,1.33596691]
[1746580004128,0.30374939,605.87,604.29,1.33596691]
[1746580004428,0.30374939,605.86,604.29,1.33596691]
[1746580004728,0.30374939,605.85,604.29,1.33596691]
[1746580004930,0.30374939,605.84,604.29,1.33596691]
[1746580005123,0.30374939,605.83,604.29,1.33596691]
[1746580005429,0.30374939,605.9,604.29,1.33596691]
[1746580005626,0.28756647,605.91,604.29,1.33596691]
[1746580006023,0.30375775,605.9,604.29,1.33596691]
[1746580006432,0.30375775,605.89,604.29,1.33596691]
[1746580007029,0.2875831,605.88,604.29,1.33596691]
[1746580007930,0.30375775,605.87,604.29,1.33596691]
[1746580010030,0.28758667,605.86,604.29,1.33596691]
[1746580010330,0.30375775,605.85,604.29,1.33596691]
[1746580012734,0.28758667,605.86,604.29,1.33596691]
[1746580012935,0.30375396,605.85,604.29,1.33596691]
[1746580016337,0.28757003,605.84,604.29,1.33596691]
[1746580016539,0.59132399,605.84,604.29,1.33596691]
[1746580016731,0.30375396,605.83,604.29,1.33596691]
[1746580022035,0.28760331,605.82,604.29,1.33596691]
[1746580022539,0.30375396,605.81,604.29,1.33596691]
[1746580025148,0.28760568,605.8,604.29,1.33596691]
[1746580025344,0.30375396,605.79,604.29,1.33596691]
[1746580027945,0.30375396,606.07,604.29,1.33596691]
[1746580028146,0.28760806,605.78,604.29,1.33596691]
[1746580028346,0.30375396,606.07,604.29,1.33596691]
[1746580028547,0.30375396,605.77,604.29,1.33596691]
[1746580028742,0.30375396,606.07,604.29,1.33596691]
[1746580029148,0.28757479,605.76,604.29,1.33596691]
[1746580029454,0.30375396,605.75,604.29,1.33596691]
[1746580029645,0.59132993,605.75,604.29,1.33596691]
[1746580029842,0.28757597,605.75,604.29,1.33596691]
[1746580030148,0.30375396,605.74,604.29,1.33596691]
[1746580032049,0.30375396,605.73,604.29,1.33596691]
[1746580032349,0.30375396,605.72,604.29,1.33596691]
[1746580032749,0.30375396,605.71,604.29,1.33596691]
[1746580033144,0.30375396,605.74,604.29,1.33596691]
[1746580033949,0.30375396,605.89,604.29,1.33596691]
[1746580034249,0.287614,605.73,604.29,1.33596691]
[1746580034450,0.30378153,605.72,604.29,1.33596691]
[1746580034642,0.30378153,605.89,604.29,1.33596691]
[1746580034844,0.30378153,605.88,604.29,1.33596691]
[1746580035043,0.30378153,605.87,604.29,1.33596691]
[1746580035449,0.30378153,605.86,604.29,1.33596691]
[1746580035845,0.30378153,605.87,604.29,1.33596691]
[1746580037047,0.28759855,605.86,604.29,1.33596691]
[1746580037452,0.30378153,605.85,604.29,1.33596691]
[1746580040055,0.28760093,605.84,604.29,1.33596691]
[1746580040549,0.30378153,605.83,604.29,1.33596691]
[1746580043059,0.28760331,605.82,604.29,1.33596691]
[1746580043357,0.30378153,605.81,604.29,1.33596691]
[1746580046159,0.28760568,605.8,604.29,1.33596691]
[1746580046356,0.30378153,605.79,604.29,1.33596691]
[1746580049162,0.28757479,605.78,604.29,1.33596691]
[1746580049565,0.30378153,605.77,604.29,1.33596691]
[1746580051369,0.28757479,605.78,604.29,1.33596691]
[1746580051768,0.3037818,605.76,604.29,1.33596691]
[1746580052068,0.3037818,606.07,604.29,1.33596691]
[1746580052269,0.28757479,605.75,604.29,1.33596691]
[1746580052464,0.33000033,606.06,604.29,1.33596691]
[1746580052666,0.3037818,606.05,604.29,1.33596691]
[1746580052863,0.33001122,606.04,604.29,1.33596691]
[1746580053064,0.63379302,606.04,604.29,1.33596691]
[1746580053265,0.3037818,606.03,604.29,1.33596691]
[1746580053570,0.3037818,606.02,604.29,1.33596691]
[1746580053769,0.59136134,606.02,604.29,1.33596691]
[1746580053970,0.3037818,606.01,604.29,1.33596691]
[1746580054168,0.63380935,606.01,604.29,1.33596691]
[1746580054368,0.3037818,606.0,604.29,1.33596691]
[1746580054665,0.3037818,605.99,604.29,1.33596691]
[1746580055072,0.2875831,605.98,604.29,1.33596691]
[1746580055272,0.5913649,605.98,604.29,1.33596691]
[1746580055572,0.3037818,605.97,604.29,1.33596691]
[1746580056073,0.3037818,605.96,604.29,1.33596691]
[1746580056374,0.3037818,605.95,604.29,1.33596691]
[1746580056575,0.3037818,605.94,604.29,1.33596691]
[1746580056875,0.3037818,605.93,604.29,1.33596691]
[1746580057176,0.3037818,605.92,604.29,1.33596691]
[1746580057575,0.3037818,605.97,604.29,1.33596691]
[1746580057975,0.3037818,605.96,604.29,1.33596691]
[1746580058271,0.3037818,605.95,604.29,1.33596691]
[1746580058475,0.3037818,605.94,604.29,1.33596691]
[1746580059078,0.3037818,605.93,604.29,1.33596691]
[1746580059375,0.3037818,605.95,604.29,1.33596691]
[1746580062080,0.33006568,605.94,604.29,1.33596691]
[1746580062582,0.3037818,605.93,604.29,1.33596691]
[1746580062779,0.33007657,605.92,604.29,1.33596691]
[1746580063180,0.3037818,605.91,604.29,1.33596691]
[1746580063978,0.33008747,605.9,604.29,1.33596691]
[1746580064176,0.61772406,605.9,604.29,1.33596691]
[1746580064376,0.3037818,605.89,604.29,1.33596691]
[1746580064579,0.33009836,605.88,604.29,1.33596691]
[1746580064984,0.3037818,605.87,604.29,1.33596691]
[1746580065186,0.33010926,605.86,604.29,1.33596691]
[1746580065785,0.3037818,605.85,604.29,1.33596691]
[1746580066083,0.33010926,605.86,604.29,1.33596691]
[1746580066282,0.30384313,605.84,604.29,1.33596691]
[1746580066581,0.30384313,605.85,604.29,1.33596691]
[1746580073087,0.28757479,605.84,604.29,1.33596691]
[1746580073689,0.30384313,605.83,604.29,1.33596691]
[1746580081392,0.28757479,605.84,604.29,1.33596691]
[1746580081593,0.3036741,605.83,604.29,1.33596691]
[1746580085797,0.28757479,605.84,604.29,1.33596691]
[1746580086397,0.3036675,605.83,604.29,1.33596691]
[1746580088000,0.28755578,605.82,604.29,1.33596691]
[1746580088200,0.3036675,605.81,604.29,1.33596691]
[1746580088500,0.28755578,605.82,604.29,1.33596691]
[1746580089600,0.3036459,605.81,604.29,1.33596691]
[1746580091098,1.261043,606.82,604.29,1.33596691]
[1746580091099,0.28753914,605.8,604.29,1.33596691]
[1746580091297,0.3036459,605.79,604.29,1.33596691]
[1746580093999,0.2875629,605.78,604.29,1.33596691]
[1746580094402,0.30366197,605.77,604.29,1.33596691]
[1746580099112,0.30366197,605.77,604.29,0.33096691]
[1746580099906,0.30366197,606.69,604.29,0.33096691]
[1746580100110,0.28756647,605.76,604.29,0.33096691]